bitfinex/quotes_BTCUSD_20250123
["timestamp","ask_amount","ask_price","bid_price","bid_amount"]
[1737618482884,0.0001425,102500.0,102490.0,0.47858798]
[1737618483134,0.0001425,102500.0,102490.0,0.59654313]
[1737618483410,0.0001425,102520.0,102510.0,0.323351]
[1737618483657,0.00025287,102520.0,102510.0,0.68553425]
[1737618483916,0.00025287,102520.0,102510.0,0.59591587]
[1737618484682,0.00025287,102520.0,102510.0,0.59652413]
[1737618484939,0.00025287,102520.0,102510.0,0.70614211]
[1737618485699,0.00025287,102520.0,102510.0,1.99123211]
[1737618486375,0.00025287,102520.0,102510.0,2.01423211]
[1737618487134,0.00025287,102520.0,102510.0,2.0332505]
[1737618487377,8.7e-07,102520.0,102510.0,2.0332505]
[1737618487633,8.7e-07,102520.0,102510.0,0.7870772]
[1737618487891,8.7e-07,102520.0,102510.0,0.7569605]
[1737618488142,8.7e-07,102520.0,102510.0,0.78706065]
[1737618488643,0.00538895,102530.0,102520.0,1.43337284]
[1737618488888,0.00238895,102530.0,102520.0,1.65872013]
[1737618489124,0.00238895,102530.0,102520.0,1.43689513]
[1737618489329,0.00238895,102530.0,102520.0,1.42395213]
[1737618489554,0.00238895,102530.0,102520.0,1.38795213]
[1737618489795,0.00238895,102530.0,102520.0,1.35531013]
[1737618490776,0.00238895,102530.0,102520.0,0.96966413]
[1737618490977,0.00238895,102530.0,102520.0,0.60311413]
[1737618491357,0.00238895,102530.0,102520.0,0.58250627]
[1737618492195,0.00238895,102530.0,102520.0,0.58311453]
[1737618492625,0.00238895,102530.0,102520.0,0.60311413]
[1737618494460,0.00238895,102530.0,102520.0,0.62611413]
[1737618495079,0.00238895,102530.0,102520.0,0.83049213]
[1737618495631,9.5e-07,102530.0,102520.0,0.83049213]
[1737618495813,3.1e-07,102550.0,102540.0,0.41792986]
[1737618496029,0.0001424,102560.0,102550.0,0.325113]
[1737618496241,0.00064351,102560.0,102550.0,0.53207827]
[1737618498768,0.00064351,102560.0,102550.0,0.41246029]
[1737618501159,0.00064351,102560.0,102550.0,0.33486029]
[1737618501338,0.00064351,102560.0,102550.0,0.237513]
[1737618501754,0.05003525,102560.0,102550.0,0.237513]
[1737618502089,0.05003525,102560.0,102550.0,0.24745201]
[1737618508367,0.00064351,102560.0,102550.0,0.24745201]
[1737618508731,0.05003525,102560.0,102550.0,0.24775105]
[1737618510589,0.00064351,102560.0,102550.0,0.32295105]
[1737618510804,0.05003525,102560.0,102550.0,0.32295105]
[1737618511208,0.00064351,102560.0,102550.0,0.32295105]
[1737618511534,0.05003525,102560.0,102550.0,0.32295105]
[1737618512327,0.00064351,102560.0,102550.0,0.32295105]
[1737618512681,0.05003525,102560.0,102550.0,0.32295105]
[1737618512857,0.00064351,102560.0,102550.0,0.42029834]
[1737618514370,0.00064351,102560.0,102550.0,0.4397409]
[1737618515996,0.00064351,102560.0,102550.0,0.54935888]
[1737618517370,0.00064351,102560.0,102550.0,0.4397409]
[1737618518903,0.00064351,102560.0,102550.0,0.54935888]
[1737618519838,0.00064351,102560.0,102550.0,0.59745888]
[1737618521395,0.00064351,102560.0,102550.0,0.95039374]
[1737618521816,0.00064351,102560.0,102550.0,0.98049926]
[1737618522542,0.00064351,102560.0,102550.0,0.67117226]
[1737618522765,0.00064351,102560.0,102550.0,0.79532226]
[1737618523257,0.00064351,102560.0,102550.0,0.64817226]
[1737618523708,0.00064351,102560.0,102550.0,0.62817266]
[1737618523858,0.00064351,102560.0,102550.0,0.64817226]
[1737618524057,0.00064351,102560.0,102550.0,0.77329626]
[1737618524934,0.00064351,102560.0,102550.0,1.15384226]
[1737618525130,0.00064351,102560.0,102550.0,0.93966026]
[1737618525333,0.00064351,102560.0,102550.0,0.6275644]
[1737618525538,0.00064351,102560.0,102550.0,0.59745888]
[1737618525737,0.00064351,102560.0,102550.0,1.50107914]
[1737618525955,0.00064351,102560.0,102550.0,0.90343514]
[1737618526356,0.00064351,102560.0,102550.0,0.59806714]
[1737618528196,0.00064351,102560.0,102550.0,0.73570114]
[1737618528378,0.00064351,102560.0,102550.0,0.73509288]
[1737618528517,0.00064351,102560.0,102550.0,0.59745888]
[1737618528717,0.00064351,102560.0,102550.0,0.73418688]
[1737618530778,0.00064351,102560.0,102550.0,0.59745888]
[1737618532729,0.00064351,102560.0,102550.0,0.59806714]
[1737618533334,0.00064351,102560.0,102550.0,0.59745888]
[1737618533784,0.00064351,102560.0,102550.0,0.59806714]
[1737618533945,0.00064351,102560.0,102550.0,0.59745888]
[1737618534623,0.00064351,102560.0,102550.0,0.59806714]
[1737618535131,0.00064351,102560.0,102550.0,0.4878409]
[1737618535364,0.00064351,102560.0,102550.0,0.12719361]
[1737618535714,0.00064351,102560.0,102550.0,0.27719361]
[1737618537041,0.00064351,102560.0,102550.0,0.25775105]
[1737618537281,0.29635623,102560.0,102550.0,0.00029904]
[1737618537489,0.34431178,102560.0,102550.0,0.00029904]
[1737618538864,0.2346938,102560.0,102550.0,0.00029904]
[1737618540077,0.2346938,102560.0,102550.0,0.09781204]
[1737618540486,0.00064351,102560.0,102550.0,0.09781204]
[1737618541581,0.00064351,102560.0,102550.0,0.24781204]
[1737618544387,0.00064351,102560.0,102550.0,0.32471204]
[1737618544590,0.00064351,102560.0,102550.0,0.42205933]
[1737618546721,0.00064351,102560.0,102550.0,0.46915933]
[1737618547306,0.00064351,102560.0,102550.0,0.48825173]
[1737618554363,0.00064351,102560.0,102550.0,0.59786971]
[1737618557473,0.00064351,102560.0,102550.0,0.48825173]
[1737618559985,0.00064351,102560.0,102550.0,0.59786971]
[1737618564485,0.00064351,102560.0,102550.0,0.48825173]
[1737618565697,0.00064351,102560.0,102550.0,0.59786971]
[1737618566522,0.00064351,102560.0,102550.0,0.48825173]
[1737618576620,0.03020365,102580.0,102570.0,0.15]
[1737618576861,0.34369937,102580.0,102570.0,0.097494]
[1737618577096,0.24621537,102580.0,102570.0,0.097494]
[1737618577511,0.23408139,102580.0,102570.0,0.097494]
[1737618578022,0.34369937,102580.0,102570.0,0.097494]
[1737618578235,0.03020365,102570.0,102560.0,0.29249]
[1737618578454,0.10961798,102570.0,102560.0,0.29249]
[1737618579234,0.30445927,102570.0,102560.0,0.29249]
[1737618579462,0.03020365,102560.0,102550.0,0.29281704]
[1737618579660,0.17902163,102560.0,102550.0,0.29281704]
[1737618579956,0.17902163,102560.0,102550.0,0.44281704]
[1737618584333,0.06940365,102560.0,102550.0,0.44281704]
[1737618585704,0.03020365,102560.0,102550.0,0.44281704]
[1737618586795,0.34366827,102560.0,102550.0,0.00029904]
[1737618587000,0.38666827,102560.0,102550.0,0.00029904]
[1737618588889,0.12772565,102540.0,102530.0,0.10719978]
[1737618589143,0.12755094,102540.0,102530.0,0.25719978]
[1737618590041,0.12755094,102540.0,102530.0,0.25770089]
[1737618591890,0.03020365,102550.0,102530.0,0.39348787]
[1737618592086,0.0001425,102560.0,102550.0,0.097513]
[1737618592423,0.09748979,102560.0,102550.0,0.097513]
[1737618593879,0.18489964,102560.0,102550.0,0.097513]
[1737618595358,0.08755235,102560.0,102550.0,0.097513]
[1737618597305,0.0001425,102560.0,102550.0,0.097513]
[1737618598248,0.03034615,102560.0,102550.0,0.097513]
[1737618599207,0.03034615,102560.0,102550.0,0.247513]
[1737618600007,0.03034615,102560.0,102550.0,0.25735406]
[1737618600736,0.12769344,102560.0,102550.0,0.25735406]
[1737618601151,0.12769344,102560.0,102550.0,0.247513]
[1737618601360,0.12669344,102560.0,102550.0,0.24781204]
[1737618601995,0.19485029,102560.0,102550.0,0.09781204]
[1737618602200,0.19485029,102560.0,102550.0,0.00029904]
[1737618602913,0.19485029,102560.0,102550.0,0.09781204]
[1737618603122,0.19485029,102560.0,102550.0,0.00029904]
[1737618603835,0.19485029,102560.0,102550.0,0.09781204]
[1737618605817,0.19485029,102560.0,102550.0,0.09756304]
[1737618609217,0.19485029,102560.0,102550.0,5.004e-05]
[1737618609432,0.34746827,102560.0,102550.0,5.004e-05]
[1737618609647,0.41666827,102560.0,102550.0,5.004e-05]
[1737618611933,0.097522,102540.0,102530.0,0.09802811]
[1737618612137,0.09734729,102540.0,102530.0,0.09802811]
[1737618612333,0.499238,102560.0,102540.0,0.097522]
[1737618612533,0.19486029,102550.0,102540.0,0.097522]
[1737618614296,0.02934615,102550.0,102540.0,0.270232]
[1737618614523,0.02934615,102550.0,102540.0,0.517754]
[1737618616166,0.12669344,102550.0,102540.0,0.517754]
[1737618621281,0.12669344,102550.0,102540.0,0.367754]
[1737618621596,0.19486029,102550.0,102540.0,0.172722]
[1737618622404,0.19486029,102550.0,102540.0,0.0752]
[1737618622630,0.2926605,102560.0,102540.0,0.465264]
[1737618622832,0.02934615,102550.0,102540.0,0.367751]
[1737618623030,0.39000679,102560.0,102550.0,0.097513]
[1737618623472,0.19499979,102560.0,102550.0,0.097513]
[1737618625117,0.09748979,102560.0,102550.0,0.097513]
[1737618625318,0.09748979,102560.0,102550.0,0.179713]
[1737618625512,0.09748979,102560.0,102550.0,0.224913]
[1737618628062,0.0001425,102560.0,102550.0,0.224913]
[1737618631220,0.0001425,102560.0,102550.0,0.374913]
[1737618631221,0.02948865,102560.0,102550.0,0.374913]
[1737618631439,0.0001425,102560.0,102550.0,0.374913]
[1737618631814,0.0001425,102560.0,102550.0,0.37814627]
[1737618632475,0.02948865,102560.0,102550.0,0.374913]
[1737618636169,0.02948865,102560.0,102550.0,0.37806534]
[1737618636372,0.02948865,102560.0,102550.0,0.374913]
[1737618636626,0.02948865,102560.0,102550.0,0.37806534]
[1737618637858,0.02948865,102560.0,102550.0,0.37836459]
[1737618639197,0.02948865,102560.0,102550.0,0.39748105]
[1737618643306,0.0001425,102560.0,102550.0,0.50709903]
[1737618643511,0.0001425,102560.0,102550.0,0.39748105]
[1737618647602,0.02948865,102560.0,102550.0,0.39748105]
[1737618650128,0.02948865,102560.0,102550.0,0.37836459]
[1737618651381,0.02948865,102560.0,102550.0,0.33316459]
[1737618651655,0.0001425,102560.0,102550.0,0.18316459]
[1737618651796,0.09748979,102560.0,102550.0,0.10096459]
[1737618652399,0.19499279,102560.0,102550.0,0.10096459]
[1737618652641,0.09748979,102560.0,102550.0,0.10096459]
[1737618654080,0.12683594,102560.0,102550.0,0.10096459]
[1737618654516,0.09748979,102560.0,102550.0,0.10096459]
[1737618654635,0.19499279,102560.0,102550.0,0.10919633]
[1737618655446,0.19499279,102560.0,102550.0,0.01168333]
[1737618655650,0.19499279,102560.0,102550.0,0.10919633]
[1737618656061,0.19499279,102560.0,102550.0,0.10096459]
[1737618657968,0.19499279,102560.0,102550.0,0.10919709]
[1737618660316,0.19499279,102560.0,102550.0,0.01168409]
[1737618660529,0.19499279,102560.0,102550.0,0.10919709]
[1737618660734,0.26686973,102560.0,102550.0,0.01168409]
[1737618660944,0.19499279,102560.0,102550.0,0.10919709]
[1737618663362,0.19499279,102560.0,102550.0,0.10096459]
[1737618664714,0.26686973,102560.0,102550.0,0.00345159]
[1737618665048,0.33874667,102560.0,102550.0,0.00345159]
[1737618665254,0.26686973,102560.0,102550.0,0.00345159]
[1737618668952,0.42094667,102560.0,102550.0,0.00345159]
[1737618670105,0.34906973,102560.0,102550.0,0.00345159]
[1737618671733,0.38673524,102560.0,102550.0,0.00345159]
[1737618673057,0.34753524,102560.0,102550.0,0.00345159]
[1737618673274,0.19499279,102560.0,102550.0,0.08335159]
[1737618673612,0.19499279,102560.0,102550.0,0.18086459]
[1737618673813,0.28240264,102560.0,102550.0,0.18086459]
[1737618674435,0.28240264,102560.0,102550.0,0.08335159]
[1737618674566,0.28240264,102560.0,102550.0,0.18086459]
[1737618675220,0.18489964,102560.0,102550.0,0.18086459]
[1737618676054,0.28240264,102560.0,102550.0,0.18086459]
[1737618676469,0.18489964,102560.0,102550.0,0.18086459]
[1737618676694,0.28240264,102560.0,102550.0,0.18086459]
[1737618677322,0.19499279,102560.0,102550.0,0.18086459]
[1737618679636,0.09748979,102560.0,102550.0,0.18086459]
[1737618680715,0.09748979,102560.0,102550.0,0.18909545]
[1737618682292,0.19499279,102560.0,102550.0,0.18909545]
[1737618682614,0.09748979,102560.0,102550.0,0.18909545]
[1737618682758,0.0001425,102560.0,102550.0,0.18909545]
[1737618682999,0.0001425,102560.0,102550.0,0.23589545]
[1737618683220,0.02948865,102560.0,102550.0,0.23589545]
[1737618683628,0.02948865,102560.0,102550.0,0.38589545]
[1737618685609,0.0001425,102560.0,102550.0,0.38589545]
[1737618685775,0.0001425,102560.0,102550.0,0.37766459]
[1737618685973,0.0001425,102560.0,102550.0,0.48720704]
[1737618686469,0.0001425,102560.0,102550.0,0.58455433]
[1737618687356,0.08740985,102570.0,102560.0,0.144303]
[1737618687561,0.08740985,102570.0,102560.0,0.25384545]
[1737618688194,0.08740985,102570.0,102560.0,0.25669774]
[1737618690491,0.08740985,102570.0,102560.0,0.33179774]
[1737618690666,0.08499438,102570.0,102560.0,0.33179774]
[1737618692124,0.02948855,102580.0,102570.0,0.322594]
[1737618692775,0.02948855,102580.0,102570.0,0.32544629]
[1737618693098,0.0001424,102580.0,102570.0,0.32544629]
[1737618693332,0.02953865,102580.0,102570.0,0.32544629]
[1737618693865,0.0001925,102580.0,102570.0,0.32544629]
[1737618694075,0.02953865,102580.0,102570.0,0.32544629]
[1737618696712,0.0001925,102580.0,102570.0,0.37504629]
[1737618697904,0.0001925,102580.0,102570.0,0.38479548]
[1737618707612,0.02953865,102580.0,102570.0,0.38479548]
[1737618708597,0.0001925,102580.0,102570.0,0.38479548]
[1737618708836,0.02953865,102580.0,102570.0,0.38479548]
[1737618709372,0.0001925,102580.0,102570.0,0.38479548]
[1737618709581,0.02953865,102580.0,102570.0,0.38479548]
[1737618719534,0.02953865,102580.0,102570.0,0.38509452]
[1737618725753,0.02902938,102580.0,102570.0,0.38509452]
[1737618726198,0.0976173,102590.0,102580.0,0.097484]
[1737618726402,0.19496459,102590.0,102580.0,0.097484]
[1737618726608,0.19496459,102590.0,102580.0,0.10032237]
[1737618731697,0.19496459,102590.0,102580.0,0.18042237]
[1737618733305,0.09748959,102590.0,102580.0,0.18042237]
[1737618733914,0.0001423,102590.0,102580.0,0.18042237]
[1737618734968,0.0001423,102590.0,102580.0,0.33865051]
[1737618735171,0.02917168,102590.0,102580.0,0.45777779]
[1737618735969,0.02917168,102590.0,102580.0,0.44954965]
[1737618736480,0.0001423,102590.0,102580.0,0.52137693]
[1737618736681,0.06721167,102600.0,102590.0,0.224875]
[1737618736882,0.06726174,102600.0,102590.0,0.46870794]
[1737618737284,0.06726174,102600.0,102590.0,0.39688066]
[1737618737489,0.06726174,102600.0,102590.0,0.29953337]
[1737618737706,0.06726174,102600.0,102590.0,0.33708761]
[1737618740847,5.007e-05,102600.0,102590.0,0.34701688]
[1737618741174,5.007e-05,102600.0,102590.0,0.3661753]
[1737618743591,0.00019247,102600.0,102590.0,0.3661753]
[1737618744871,0.00019247,102600.0,102590.0,0.46352259]
[1737618745272,0.00019247,102600.0,102590.0,0.61352259]
[1737618747808,0.00019247,102600.0,102590.0,0.5161753]
[1737618751615,0.00019247,102600.0,102590.0,0.52435357]
[1737618753023,0.00019247,102600.0,102590.0,0.41497205]
[1737618754103,0.00019247,102600.0,102590.0,0.26497205]
[1737618754468,0.02922185,102600.0,102590.0,0.26527205]
[1737618754671,0.00019247,102600.0,102590.0,0.58138238]
[1737618754845,0.0001425,102630.0,102620.0,0.097446]
[1737618755250,0.0001425,102630.0,102620.0,0.09995067]
[1737618755841,0.09748979,102630.0,102620.0,0.09995067]
[1737618756019,0.19492679,102630.0,102620.0,0.09995067]
[1737618756372,0.21492679,102630.0,102620.0,0.00250467]
[1737618756599,0.26182679,102630.0,102620.0,0.00250467]
[1737618757028,0.28482679,102630.0,102620.0,0.00250467]
[1737618757389,0.24187686,102630.0,102620.0,0.00250467]
[1737618757588,0.26187686,102630.0,102620.0,0.00250467]
[1737618759398,0.26187686,102630.0,102620.0,0.00346077]
[1737618761684,0.25154825,102630.0,102620.0,0.00346077]
[1737618765648,0.20464825,102630.0,102620.0,0.00346077]
[1737618767874,0.20479065,102630.0,102620.0,0.00346077]
[1737618771179,0.22779065,102630.0,102620.0,0.00346077]
[1737618771391,0.33717217,102630.0,102620.0,0.00346077]
[1737618771597,0.33717217,102630.0,102620.0,0.00457922]
[1737618772223,0.22779065,102630.0,102620.0,0.00457922]
[1737618773048,0.33717217,102630.0,102620.0,0.00457922]
[1737618775452,0.51265369,102630.0,102620.0,0.00457922]
[1737618775617,0.71265369,102630.0,102620.0,0.00457922]
[1737618776069,0.60327217,102630.0,102620.0,0.00457922]
[1737618776511,0.02,102610.0,102600.0,0.18877729]
[1737618776718,0.21480329,102610.0,102600.0,0.19297467]
[1737618777147,0.21480329,102610.0,102600.0,0.09550967]
[1737618777887,0.21480329,102610.0,102600.0,0.19297467]
[1737618778249,0.21480329,102610.0,102600.0,0.09550967]
[1737618778774,0.21480329,102610.0,102600.0,0.19297467]
[1737618779248,0.21480329,102610.0,102600.0,0.09550967]
[1737618779444,0.21480329,102610.0,102600.0,0.09580871]
[1737618779836,0.21480329,102610.0,102600.0,0.08759642]
[1737618780035,0.21480329,102610.0,102600.0,0.18506142]
[1737618780495,0.292356,102620.0,102610.0,0.097456]
[1737618780675,0.38970329,102620.0,102610.0,0.10165809]
[1737618781284,0.47694852,102620.0,102610.0,0.10165809]
[1737618781662,0.47694852,102620.0,102610.0,0.00420209]
[1737618781885,0.097456,102610.0,102600.0,0.42567304]
[1737618782243,0.86676652,102620.0,102600.0,0.42987513]
[1737618782582,0.67185852,102620.0,102600.0,0.62479813]
[1737618783253,0.67185852,102620.0,102600.0,0.63300717]
[1737618784155,0.86676352,102620.0,102600.0,0.63300717]
[1737618784371,0.67185652,102620.0,102600.0,0.63300717]
[1737618784993,0.02902938,102610.0,102600.0,0.58808417]
[1737618791394,0.02542938,102610.0,102600.0,0.58448417]
[1737618791631,0.22023267,102610.0,102600.0,0.43448417]
[1737618792725,0.22023267,102610.0,102600.0,0.23956917]
[1737618793143,0.22023267,102610.0,102600.0,0.23957517]
[1737618793291,0.12277667,102610.0,102600.0,0.23957517]
[1737618793708,0.22023267,102610.0,102600.0,0.23957517]
[1737618794676,0.34718481,102610.0,102600.0,0.01271017]
[1737618795870,0.34718481,102610.0,102600.0,0.00450113]
[1737618797102,0.32718481,102610.0,102600.0,0.00450113]
[1737618797312,0.36638481,102610.0,102600.0,0.00450113]
[1737618798151,0.41328481,102610.0,102600.0,0.00450113]
[1737618798380,0.46328481,102610.0,102600.0,0.00450113]
[1737618800982,0.55053004,102610.0,102600.0,0.00450113]
[1737618801827,0.90725885,102610.0,102600.0,0.00450113]
[1737618802125,1.15725885,102610.0,102600.0,0.00450113]
[1737618802886,1.15740125,102610.0,102600.0,0.00450113]
[1737618804155,0.95067244,102610.0,102600.0,0.00450113]
[1737618804588,0.86342721,102610.0,102600.0,0.00450113]
[1737618805260,0.61342721,102610.0,102600.0,0.00450113]
[1737618805468,0.91342721,102610.0,102600.0,0.00450113]
[1737618805673,0.86342721,102610.0,102600.0,0.00450113]
[1737618806362,0.91342721,102610.0,102600.0,0.00450113]
[1737618807199,0.86342721,102610.0,102600.0,0.00450113]
[1737618809689,0.67732721,102610.0,102600.0,0.00450113]
[1737618811241,0.67732721,102610.0,102600.0,0.00446113]
[1737618812671,0.62732721,102610.0,102600.0,0.00446113]
[1737618813013,0.67732721,102610.0,102600.0,0.00446113]
[1737618813222,0.76459516,102610.0,102600.0,0.00446113]
[1737618814485,0.86719516,102610.0,102600.0,0.00446113]
[1737618814728,0.76459516,102610.0,102600.0,0.00446113]
[1737618815528,0.77458614,102610.0,102600.0,0.00446113]
[1737618816054,0.7622753,102610.0,102600.0,0.00446113]
[1737618816678,0.71855682,102610.0,102600.0,0.00446113]
[1737618816895,0.75775682,102610.0,102600.0,0.00446113]
[1737618818926,0.67048887,102610.0,102600.0,0.00446113]
[1737618823255,0.67048887,102610.0,102600.0,1.3e-07]
[1737618823498,0.39542938,102600.0,102590.0,5.8e-07]
[1737618823708,0.78347533,102600.0,102590.0,5.8e-07]
[1737618830764,0.80326638,102600.0,102590.0,0.00342554]
[1737618831131,0.75636638,102600.0,102590.0,0.00342554]
[1737618832366,0.76596814,102600.0,102590.0,0.00342554]
[1737618832570,0.86331543,102600.0,102590.0,0.00342554]
[1737618834799,0.86856814,102600.0,102590.0,0.00342554]
[1737618838210,0.86871054,102600.0,102590.0,0.00342554]
[1737618839403,0.87687054,102600.0,102590.0,0.00342554]
[1737618851992,0.80184298,102600.0,102590.0,0.00342554]
[1737618854259,0.66808298,102600.0,102590.0,0.13022554]
[1737618854462,0.20455645,102600.0,102590.0,0.13022554]
[1737618854667,0.19495469,102600.0,102590.0,0.13022554]
[1737618854835,0.43682243,102600.0,102590.0,0.13022554]
[1737618855047,0.21495469,102600.0,102590.0,0.22770054]
[1737618855253,0.11748969,102600.0,102590.0,0.22770054]
[1737618855983,0.21495469,102600.0,102590.0,0.22770054]
[1737618856948,0.28682243,102600.0,102590.0,0.22770054]
[1737618857227,0.21495469,102600.0,102590.0,0.22770054]
[1737618858331,0.11748969,102600.0,102590.0,0.22770054]
[1737618858553,0.21495469,102600.0,102590.0,0.22770054]
[1737618864215,0.10759442,102610.0,102600.0,0.097465]
[1737618864558,0.30239771,102610.0,102600.0,0.220665]
[1737618864771,0.30239771,102610.0,102600.0,0.22424427]
[1737618868250,0.32738619,102610.0,102600.0,0.12677927]
[1737618868477,0.37738619,102610.0,102600.0,0.12677927]
[1737618872085,0.38703421,102610.0,102600.0,0.12673927]
[1737618877821,0.34942149,102610.0,102600.0,0.12673927]
[1737618881818,0.29942149,102610.0,102600.0,0.12673927]
[1737618882180,0.34942149,102610.0,102600.0,0.12673927]
[1737618882807,0.29942149,102610.0,102600.0,0.12673927]
[1737618883629,0.34942149,102610.0,102600.0,0.12673927]
[1737618885031,0.34942149,102610.0,102600.0,0.12703831]
[1737618892430,0.42124927,102610.0,102600.0,0.12703831]
[1737618894410,0.90680765,102610.0,102600.0,0.00387831]
[1737618894538,0.85680765,102610.0,102600.0,0.00387831]
[1737618894829,0.82124927,102610.0,102600.0,0.00308746]
[1737618894951,0.97507705,102610.0,102600.0,0.00308746]
[1737618895203,0.67507705,102610.0,102600.0,4.6e-07]
[1737618895404,0.67507705,102610.0,102600.0,0.00326706]
[1737618895608,0.77242434,102610.0,102600.0,0.00326706]
[1737618895806,0.70059656,102610.0,102600.0,0.00326706]
[1737618896017,0.77242434,102610.0,102600.0,0.00326706]
[1737618900630,0.52124927,102610.0,102600.0,0.00326706]
[1737618900832,0.82936927,102610.0,102600.0,0.00326706]
[1737618902710,0.42642149,102610.0,102600.0,0.13336706]
[1737618902910,0.49824927,102610.0,102600.0,0.13336706]
[1737618903115,0.52124927,102610.0,102600.0,0.13336706]
[1737618906464,0.44942149,102610.0,102600.0,0.13336706]
[1737618907296,0.52124927,102610.0,102600.0,0.13336706]
[1737618908327,0.44942149,102610.0,102600.0,0.13336706]
[1737618908459,0.52124927,102610.0,102600.0,0.13336706]
[1737618908664,0.53689142,102610.0,102600.0,0.13336706]
[1737618908871,0.6087192,102610.0,102600.0,0.13336706]
[1737618909652,0.53689142,102610.0,102600.0,0.13336706]
[1737618910357,0.58689142,102610.0,102600.0,0.13336706]
[1737618910602,0.6587192,102610.0,102600.0,0.13336706]
[1737618910781,0.53689142,102610.0,102600.0,0.13336706]
[1737618910977,0.6587192,102610.0,102600.0,0.13336706]
[1737618911383,0.58689142,102610.0,102600.0,0.13336706]
[1737618911983,0.53689142,102610.0,102600.0,0.13336706]
[1737618912529,0.58689142,102610.0,102600.0,0.13336706]
[1737618912986,0.75606649,102610.0,102600.0,0.13336706]
[1737618914155,0.58689142,102610.0,102600.0,0.13336706]
[1737618914357,0.6587192,102610.0,102600.0,0.13336706]
[1737618914968,0.58689142,102610.0,102600.0,0.13336706]
[1737618915176,0.6087192,102610.0,102600.0,0.13336706]
[1737618915389,0.6587192,102610.0,102600.0,0.13336706]
[1737618916182,0.58689142,102610.0,102600.0,0.13336706]
[1737618916364,0.6587192,102610.0,102600.0,0.13336706]
[1737618916995,0.58689142,102610.0,102600.0,0.13336706]
[1737618917205,0.6587192,102610.0,102600.0,0.13336706]
[1737618917422,0.38689142,102610.0,102600.0,0.13336706]
[1737618918341,0.43689142,102610.0,102600.0,0.13336706]
[1737618919942,0.5087192,102610.0,102600.0,0.13336706]
[1737618923306,0.9587192,102610.0,102600.0,0.05026706]
[1737618923724,0.9587192,102610.0,102600.0,0.00326706]
[1737618924154,0.87124927,102610.0,102600.0,0.00326706]
[1737618926855,0.29942149,102610.0,102600.0,0.12696706]
[1737618928917,0.31942149,102610.0,102600.0,0.12696706]
[1737618929103,0.29942149,102610.0,102600.0,0.12696706]
[1737618929652,0.33704026,102610.0,102600.0,0.12696706]
[1737618930475,0.35704026,102610.0,102600.0,0.12696706]
[1737618930684,0.21794569,102610.0,102600.0,0.12696706]
[1737618931529,0.23794569,102610.0,102600.0,0.12696706]
[1737618931958,0.21794569,102610.0,102600.0,0.12696706]
[1737618932323,0.30545586,102610.0,102600.0,0.12696706]
[1737618933165,0.30545586,102610.0,102600.0,0.12692706]
[1737618933411,0.32545586,102610.0,102600.0,0.12692706]
[1737618934537,0.43490241,102610.0,102600.0,0.12692706]
[1737618938437,0.43490241,102610.0,102600.0,0.10500035]
[1737618938759,0.43490241,102610.0,102600.0,0.10745678]
[1737618941572,0.5122497,102610.0,102600.0,0.10745678]
[1737618942606,0.41490241,102610.0,102600.0,0.10745678]
[1737618942955,0.41490241,102610.0,102600.0,0.10775603]
[1737618943988,0.32739224,102610.0,102600.0,0.10775603]
[1737618946119,0.32739224,102610.0,102600.0,0.20522103]
[1737618946120,0.12291907,102610.0,102600.0,0.20522103]
[1737618947358,0.12291907,102610.0,102600.0,0.2134657]
[1737618948352,0.21042924,102610.0,102600.0,0.2134657]
[1737618951426,0.12291907,102610.0,102600.0,0.2134657]
[1737618952835,0.12291907,102610.0,102600.0,0.22343921]
[1737618953179,0.12291907,102610.0,102600.0,0.2134657]
[1737618956121,0.12048969,102610.0,102600.0,0.2134657]
[1737618957213,0.12048969,102610.0,102600.0,0.22312615]
[1737618963425,0.0001424,102610.0,102600.0,0.22312615]
[1737618967447,0.14591907,102610.0,102600.0,0.2134657]
[1737618967650,0.21772334,102610.0,102600.0,0.2134657]
[1737618967851,0.14591907,102610.0,102600.0,0.2134657]
[1737618969049,0.14591907,102610.0,102600.0,0.20522103]
[1737618969958,0.24337507,102610.0,102600.0,0.20522103]
[1737618970588,0.14591907,102610.0,102600.0,0.20522103]
[1737618971278,0.12048969,102610.0,102600.0,0.21345504]
[1737618971549,0.0001424,102610.0,102600.0,0.21345504]
[1737618978078,0.0001424,102610.0,102600.0,0.22668731]
[1737618979322,0.0001424,102610.0,102600.0,0.21345504]
[1737618979550,0.28974996,102610.0,102600.0,0.05808969]
[1737618979757,0.28974996,102610.0,102600.0,0.01098969]
[1737618979975,0.30974996,102610.0,102600.0,0.01098969]
[1737618980312,0.30974996,102610.0,102600.0,0.00275568]
[1737618980517,0.38155423,102610.0,102600.0,0.00275568]
[1737618980733,0.77620152,102610.0,102600.0,0.00275568]
[1737618980904,1.07620152,102610.0,102600.0,0.00029925]
[1737618981112,1.07620152,102610.0,102600.0,0.00255802]
[1737618981314,1.07620152,102610.0,102600.0,0.0034253]
[1737618981715,1.1515807,102610.0,102600.0,0.0034253]
[1737618982143,1.00423341,102610.0,102600.0,0.0034253]
[1737618987468,1.02329773,102610.0,102600.0,0.0034253]
[1737618987830,0.85140387,102610.0,102600.0,0.0034253]
[1737618988044,0.83233955,102610.0,102600.0,0.0034253]
[1737618988316,0.85533955,102610.0,102600.0,0.0034253]
[1737618990501,0.32986893,102610.0,102600.0,0.1321253]
[1737618990673,0.12291907,102610.0,102600.0,0.2295903]
[1737618990896,0.30443955,102610.0,102600.0,0.1321253]
[1737618991214,0.34743955,102610.0,102600.0,0.1321253]
[1737618992307,0.35286893,102610.0,102600.0,0.1321253]
[1737618992631,0.32743955,102610.0,102600.0,0.1321253]
[1737618992832,0.37286893,102610.0,102600.0,0.1321253]
[1737618993181,0.34743955,102610.0,102600.0,0.1321253]
[1737618994008,0.34743955,102610.0,102600.0,0.1320853]
[1737618995238,0.20698355,102610.0,102600.0,0.2295503]
[1737618995451,0.30443955,102610.0,102600.0,0.1320853]
[1737618995650,0.32743955,102610.0,102600.0,0.1320853]
[1737618997141,0.0001424,102610.0,102600.0,0.3805249]
[1737618997293,0.0001424,102610.0,102600.0,0.3795503]
[1737619008609,0.0001424,102610.0,102600.0,0.38919653]
[1737619020328,0.12302778,102610.0,102600.0,0.2295503]
[1737619020529,0.13506564,102610.0,102600.0,0.2295503]
[1737619020730,0.02557178,102610.0,102600.0,0.2295503]
[1737619020861,0.0001424,102610.0,102600.0,0.2295503]
[1737619021474,0.02557178,102610.0,102600.0,0.2295503]
[1737619022077,0.0001424,102610.0,102600.0,0.2295503]
[1737619023564,0.02557178,102610.0,102600.0,0.2295503]
[1737619026617,0.0001424,102610.0,102600.0,0.2295503]
[1737619027564,0.02557178,102610.0,102600.0,0.2295503]
[1737619028273,0.0001424,102610.0,102600.0,0.2295503]
[1737619029511,0.02557178,102610.0,102600.0,0.2295503]
[1737619030168,0.28974523,102610.0,102600.0,0.0033853]
[1737619030570,0.36534523,102610.0,102600.0,0.0033853]
[1737619031841,0.40298991,102610.0,102600.0,0.0033853]
[1737619036689,0.42298991,102610.0,102600.0,0.0033853]
[1737619037889,0.40298991,102610.0,102600.0,0.0033853]
[1737619038072,0.44238991,102610.0,102600.0,0.0033853]
[1737619038774,0.60183413,102610.0,102600.0,0.0033853]